Workbook

Sheet Budget + Budget Narrative
A1: SPSA - Budget and Budget Narrative - 2025-26
A2: *Budget Instructions: In accordance with FL.1002.33(9)(g)(3) The statement of revenue, expenditures, and changes in fund balance shall be in the governmental funds format prescribed by the Governmental Accounting Standards Board." See sample annual budget below.
A3: Projected FTE: 744.00 | C3: 355
A4: Revenues
A5: Function | B5: Obj | C5: Description | D5: Total Governmental Funds | E5: Sample Budget Narrative ( Include a brief but detailed explanation for each amount claimed)
C6: FEDERAL SOURCES
B7: 3100 | C7: Federal direct | F7: =B7 -> 3100
B8: 3200 | C8: Federal through state and local | D8: $ 358,302 | E8: Estimated CSP Grant Revenue | F8: =B8 -> 3200
C9: STATE SOURCES | D9: $ 0 | F9: =B9 -> 0
B10: 3310 | C10: FEFP | D10: $ 2,750,548 | E10: FEFP revenue based on the 2025-26 2nd calculation sheet | F10: 3310
B11: 3397 | C11: Capital outlay | D11: $ 479,896 | E11: Based on 2024-25 estimates | F11: 3397
B12: 3355 | C12: Class size reduction | D12: $ 388,011 | E12: FEFP revenue based on the 2024-25 third revenue calculation sheet and a 1.5% increase. | F12: 3355
B13: 3361 | C13: School recognition | D13: $ 0 | F13: 3361
B14: 33XX | C14: Other state revenue | D14: $ 305,146 | E14: Estimated NSLP reimbursements based on food purchases cost. | F14: 33XX
C15: LOCAL SOURCES | D15: $ 0 | F15: 0
B16: 3430 | C16: Interest | D16: $ 0 | F16: 3430
B17: 3413 | C17: Local capital improvement tax | D17: $ 0 | F17: 3413
B18: 34X1 | C18: Other local revenue-District | D18: $ 572,216 | E18: Estimated referendum budget based on 2024-25 per FTE allocations | F18: 34X1
B19: 34X2 | C19: Other local revenue-School | D19: $ 151,414 | E19: Based on 2024-25 estimates | F19: =B19 -> 34X2
B20: 3700 | C20: Proceeds from Issuing Long-term Debt | D20: $ 0 | F20: 3700
C21: Total Revenue | D21: =SUM(D6:D20) -> $ 5,005,533
A23: Expenditures
A24: Function 5100 ‐ Basic Instruction
A25: 5100 | B25: 120 | C25: Classroom Teacher Salaries | D25: $ 1,086,387 | E25: See the staffing Plan | F25: =A25&"-"&B25 -> 5100-120
A26: 5100 | B26: 130 | C26: Other Certified Staff Member | D26: $ 117,158 | E26: See the staffing Plan | F26: =A26&"-"&B26 -> 5100-130
A27: 5100 | B27: 140 | C27: Substitute Teachers | D27: $ 0 | F27: 5100-140
A28: 5100 | B28: 150 | C28: Paraprofessionals | D28: $ 0 | F28: 5100-150
A29: 5100 | B29: 160 | C29: Other Support Personnel | D29: $ 0 | F29: 5100-160
A30: 5100 | B30: 210 | C30: Retirement | D30: $ 0 | F30: 5100-210
A31: 5100 | B31: 220 | C31: FICA | D31: $ 94,833 | E31: 7.65% of the wages | F31: 5100-220
A32: 5100 | B32: 230 | C32: Group Insurance | D32: $ 92,700 | E32: $5,000 per year per full-time employee, including inflation of 3% | F32: 5100-230
A33: 5100 | B33: 240 | C33: Worker's Compensation | D33: $ 7,280 | E33: 0.6% of the gross wages | F33: 5100-240
A34: 5100 | B34: 250 | C34: Unemployment Compensation | D34: $ 758 | E34: 0.4% of the gross wages | F34: 5100-250
A35: 5100 | B35: 290 | C35: Other Employee Benefits | D35: $ 0 | F35: 5100-290
A36: 5100 | B36: 310 | C36: Professional and Technical Services | D36: $ 0 | F36: 5100-310
A37: 5100 | B37: 390 | C37: Other Purchased Services | D37: $ 43,260 | E37: 2024-25 expenses increased by per FTE basis. | F37: 5100-390
A38: 5100 | B38: 510 | C38: Supplies | D38: $ 8,496 | E38: 2024-25 expenses increased by per FTE basis | F38: 5100-510
A39: 5100 | B39: 513 | C39: Student Assessment/Test Material | D39: $ 0 | F39: 5100-513
A40: 5100 | B40: 520 | C40: Textbooks | D40: $ 49,774 | E40: 2024-25 expenses increased by per FTE basis, also includes CSP grant budget | F40: 5100-520
A41: 5100 | B41: 522 | C41: Training Materials. | D41: $ 761 | E41: 2024-25 expenses increased by per FTE basis. | F41: 5100-522
A42: 5100 | B42: 641 | C42: Furniture, Fixtures‐Capitalized | D42: $ 160,253 | E42: 2024-25 expenses increased by per FTE basis, also includes CSP grant budget | F42: =A42&"-"&B42 -> 5100-641
A43: 5100 | B43: 642 | C43: Furniture, Fixtures‐Non Capitalized | D43: $ 165,697 | E43: 2024-25 expenses increased by per FTE basis, also includes CSP grant budget | F43: =A43&"-"&B43 -> 5100-642
A44: 5100 | B44: 643 | C44: Comp.Hardware.Cap | D44: $ 32,124 | E44: 2024-25 expenses increased by per FTE basis, also includes CSP grant budget | F44: 5100-643
A45: 5100 | B45: 644 | C45: Comp.Hardware.Non Cap | D45: $ 44,421 | E45: 2024-25 expenses increased by per FTE basis, also includes CSP grant budget | F45: 5100-644
A46: 5100 | B46: 690 | C46: Comp.Software.Non Cap | D46: $ 18,348 | E46: 2024-25 expenses increased by per FTE basis. | F46: 5100-690
A47: 5100 | B47: 790 | C47: Field Trips & Fundraising Expenses | D47: $ 0 | F47: 5100-790
C48: 5100 Sub Total | D48: =SUM(D25:D47) -> $ 1,922,251
A49: Function 5200 ‐ Exceptional Education
A50: 5200 | B50: 130 | C50: Other Certified Staff Member | D50: $ 170,000 | E50: See the staffing Plan | F50: =A50&"-"&B50 -> 5200-130
A51: 5200 | B51: 140 | C51: Substitute Teachers | D51: $ 0 | F51: 5200-140
A52: 5200 | B52: 150 | C52: Paraprofessionals | D52: $ 0 | F52: 5200-150
A53: 5200 | B53: 160 | C53: Other Support Personnel | D53: $ 0 | F53: 5200-160
A54: 5200 | B54: 210 | C54: Retirement | D54: $ 0 | F54: 5200-210
A55: 5200 | B55: 220 | C55: FICA | D55: $ 13,395 | E55: 7.65% of the wages | F55: 5200-220
A56: 5200 | B56: 230 | C56: Group Insurance | D56: $ 10,300 | E56: $5,000 per year per full-time employee, including inflation of 3% | F56: 5200-230
A57: 5200 | B57: 240 | C57: Worker's Compensation | D57: $ 1,051 | E57: 0.6% of the gross wages | F57: 5200-240
A58: 5200 | B58: 250 | C58: Unemployment Compensation | D58: $ 66 | E58: 0.4% of the gross wages | F58: 5200-250
A59: 5200 | B59: 290 | C59: Other Employee Benefits | D59: $ 0 | F59: 5200-290
A60: 5200 | B60: 310 | C60: Professional and Technical Services | D60: $ 19,978 | E60: 2024-25 expenses increased by per FTE basis. | F60: =A60&"-"&B60 -> 5200-310
A61: 5200 | B61: 510 | C61: Supplies | D61: $ 489 | E61: 2024-25 expenses increased by per FTE basis. | F61: 5200-510
C62: 5200 Sub Total | D62: =SUM(D50:D61) -> $ 215,279
A63: Function 6100 ‐ Pupil Services
A64: 6100 | B64: 130 | C64: Other Certified Staff Member | D64: $ 0 | F64: =A64&"-"&B64 -> 6100-130
A65: 6100 | B65: 140 | C65: Substitute Teachers | D65: $ 0 | F65: 6100-140
A66: 6100 | B66: 150 | C66: Paraprofessionals | D66: $ 0 | F66: 6100-150
A67: 6100 | B67: 160 | C67: Other Support Personnel | D67: $ 0 | F67: 6100-160
A68: 6100 | B68: 210 | C68: Retirement | D68: $ 0 | F68: 6100-210
A69: 6100 | B69: 220 | C69: FICA | D69: $ 0 | F69: 6100-220
A70: 6100 | B70: 230 | C70: Group Insurance | D70: $ 0 | F70: 6100-230
A71: 6100 | B71: 240 | C71: Worker's Compensation | D71: $ 0 | F71: 6100-240
A72: 6100 | B72: 250 | C72: Unemployment Compensation | D72: $ 0 | F72: 6100-250
A73: 6100 | B73: 290 | C73: Other Employee Benefits | D73: $ 0 | F73: 6100-290
C74: 6100 Sub Total | D74: =SUM(D64:D73) -> $ 0
A75: Function 6200 ‐ Instructional Media Services
A76: 6200 | B76: 120 | C76: Classroom Teacher Salaries | D76: $ 0 | F76: =A76&"-"&B76 -> 6200-120
A77: 6200 | B77: 130 | C77: Other Certified Staff Member | D77: $ 0 | F77: 6200-130
A78: 6200 | B78: 140 | C78: Substitute Teachers | D78: $ 0 | F78: 6200-140
A79: 6200 | B79: 150 | C79: Paraprofessionals | D79: $ 0 | F79: 6200-150
A80: 6200 | B80: 160 | C80: Other Support Personnel | D80: $ 0 | F80: 6200-160
A81: 6200 | B81: 210 | C81: Retirement | D81: $ 0 | F81: 6200-210
A82: 6200 | B82: 220 | C82: FICA | D82: $ 0 | F82: 6200-220
A83: 6200 | B83: 230 | C83: Group Insurance | D83: $ 0 | F83: 6200-230
A84: 6200 | B84: 240 | C84: Worker's Compensation | D84: $ 0 | F84: 6200-240
A85: 6200 | B85: 250 | C85: Unemployment Compensation | D85: $ 0 | F85: 6200-250
A86: 6200 | B86: 290 | C86: Other Employee Benefits | D86: $ 0 | F86: 6200-290
C87: 6200 Sub Total | D87: =SUM(D76:D86) -> $ 0
A88: Function 6300 ‐ Instructional/Curriculum Development
A89: 6300 | B89: 390 | C89: Other Purchased Services | D89: $ 0 | F89: =A89&"-"&B89 -> 6300-390
C90: 6300 Sub Total | D90: =SUM(D89) -> $ 0
A91: Function 6400 ‐ Instructional Staff Training
A92: 6400 | B92: 330 | C92: Travel | D92: $ 0 | F92: =A92&"-"&B92 -> 6400-330
C93: 6400 Sub Total | D93: =SUM(D92) -> $ 0
A94: Function 7100 ‐ Board
A95: 7100 | B95: 311 | C95: Prof.& Tech Services-Audit | D95: $ 10,000 | E95: Based on actual quotation | F95: =A95&"-"&B95 -> 7100-311
A96: 7100 | B96: 312 | C96: Prof.& Tech Services-Legal | D96: $ 15,000 | E96: Estimated amounts | F96: 7100-312
A97: 7100 | B97: 320 | C97: Insurance and Bond Premiums | D97: $ 57,456 | E97: Estimated amounts | F97: 7100-320
A98: 7100 | B98: 330 | C98: Travel | D98: $ 0 | F98: 7100-330
C99: 7100 Sub Total | D99: =SUM(D95:D98) -> $ 82,456
A100: Function 7200 ‐ General / District Administration
A101: 7200 | B101: 310 | C101: ESP Contracted Services | D101: $ 376,627 | E101: 12% of the gross FEFP revenue | F101: =A101&"-"&B101 -> 7200-310
C102: 7200 Sub Total | D102: =SUM(D101) -> $ 376,627
A103: Function 7300 ‐ School Administration
A104: 7300 | B104: 110 | C104: Administrator Salaries | D104: $ 151,900 | E104: See the staffing Plan | F104: =A104&"-"&B104 -> 7300-110
A105: 7300 | B105: 160 | C105: Clerical Staff | D105: $ 72,800 | E105: See the staffing Plan | F105: 7300-160
A106: 7300 | B106: 210 | C106: Retirement | D106: $ 0 | F106: 7300-210
A107: 7300 | B107: 220 | C107: FICA | D107: $ 17,705 | E107: 7.65% of the wages | F107: 7300-220
A108: 7300 | B108: 230 | C108: Group Insurance | D108: $ 10,300 | E108: $5,000 per year per full-time employee, including inflation of 3% | F108: 7300-230
A109: 7300 | B109: 240 | C109: Worker's Compensation | D109: $ 1,389 | E109: 0.6% of the gross wages | F109: 7300-240
A110: 7300 | B110: 250 | C110: Unemployment Compensation | D110: $ 99 | E110: 0.4% of the gross wages | F110: 7300-250
A111: 7300 | B111: 310 | C111: Other Purchased Services | D111: $ 0 | F111: 7300-310
A112: 7300 | B112: 330 | C112: Travel | D112: $ 2,235 | E112: 2024-25 expenses increased by per FTE basis. | F112: 7300-330
A113: 7300 | B113: 370 | C113: Postage | D113: $ 178 | E113: 2024-25 expenses increased by per FTE basis. | F113: 7300-370
A114: 7300 | B114: 510 | C114: Supplies | D114: $ 33,632 | E114: 2024-25 expenses increased by per FTE basis. | F114: 7300-510
A115: 7300 | B115: 590 | C115: Other Mat'L. & Supplies | D115: $ 8,025 | E115: 2024-25 expenses increased by per FTE basis. | F115: 7300-590
A116: 7300 | B116: 641 | C116: Furniture, Fixtures‐Capitalized | D116: $ 9,959 | E116: 2024-25 expenses increased by per FTE basis, also includes CSP grant budget | F116: 7300-641
A117: 7300 | B117: 642 | C117: Furniture, Fixtures‐Non Capitalized | D117: $ 12,963 | E117: 2024-25 expenses increased by per FTE basis, also includes CSP grant budget | F117: 7300-642
A118: 7300 | B118: 643 | C118: Comp.Hardware.Cap | D118: $ 0 | F118: =A118&"-"&B118 -> 7300-643
A119: 7300 | B119: 644 | C119: Comp.Hardware.Non Cap | D119: $ 5,348 | E119: 2024-25 expenses increased by per FTE basis, also includes CSP grant budget | F119: 7300-644
A120: 7300 | B120: 690 | C120: Computer Software | D120: $ 0 | F120: 7300-690
A121: 7300 | B121: 730 | C121: Dues and Fees | D121: $ 9,859 | E121: 2024-25 expenses increased by per FTE basis. | F121: 7300-730
A122: 7300 | B122: 750 | C122: Other Personnel Services | D122: $ 0 | F122: 7300-750
A123: 7300 | B123: 790 | C123: Miscellaneous Expenses | D123: $ 0 | F123: 7300-790
C124: 7300 Sub Total | D124: =SUM(D104:D123) -> $ 336,392
A125: Function 7400 ‐ Facilities Acquisition
A126: 7400 | B126: 630 | C126: FF&E & Building | D126: $ 0 | F126: =A126&"-"&B126 -> 7400-630
C127: 7400 Sub Total | D127: =SUM(D126:D126) -> $ 0
A128: Function 7500 ‐ Fiscal Services
A129: 7500 | B129: 310 | C129: Accounting services | D129: $ 48,000 | E129: $4,000 per month | F129: =A129&"-"&B129 -> 7500-310
A130: 7500 | B130: 961 | C130: CapOtly.ComputerSoftware | D130: $ 10,920 | E130: 2024-25 expenses increased by per FTE basis.
A131: 7500 | B131: 692 | C131: Accounting software | D131: $ 0 | F131: 7500-692
A132: 7500 | B132: 730 | C132: Bank Fees | D132: $ 2,261 | E132: 2024-25 expenses increased by per FTE basis. | F132: 7500-730
A133: 7500 | B133: 731 | C133: FEFP Dist.Admin.Fee | D133: $ 104,945 | E133: Admin Fee based on the 2025-26 second revenue calculation sheet. | F133: 7500-731
A134: 7500 | B134: 732 | C134: PurchServ.PrfTchSrvc.Others | D134: $ 0
C135: 7500 Sub Total | D135: =SUM(D129:D134) -> $ 166,126
A136: Function 7600 ‐ Food Services
A137: 7600 | B137: 160 | C137: Food Service Manager | D137: $ 216,120 | E137: See the staffing Plan | F137: =A137&"-"&B137 -> 7600-160
A138: 7600 | B138: 160 | C138: Food Service Workers | D138: $ 0 | F138: 7600-160
A139: 7600 | B139: 160 | C139: Other Support Personnel | D139: $ 0 | F139: 7600-160
A140: 7600 | B140: 210 | C140: Retirement | D140: $ 0 | F140: 7600-210
A141: 7600 | B141: 220 | C141: FICA | D141: $ 17,029 | E141: 7.65% of the wages | F141: 7600-220
A142: 7600 | B142: 230 | C142: Group Insurance | D142: $ 5,150 | E142: $5,000 per year per full-time employee, including inflation of 3% | F142: 7600-230
A143: 7600 | B143: 240 | C143: Worker's Compensation | D143: $ 1,336 | E143: 0.6% of the gross wages | F143: 7600-240
A144: 7600 | B144: 250 | C144: Unemployment Compensation | D144: $ 231 | E144: 0.4% of the gross wages | F144: 7600-250
A145: 7600 | B145: 290 | C145: Other Employee Benefits | D145: $ 0 | F145: 7600-290
A146: 7600 | B146: 310 | C146: Purch Serv - Prof. & Tech. Services | D146: $ 0 | F146: 7600-310
A147: 7600 | B147: 570 | C147: Food | D147: $ 277,924 | E147: 2024-25 expenses increased by per FTE basis. | F147: 7600-570
A148: 7600 | B148: 411 | C148: CapOtly.FF&E.Cap | D148: $ 0 | F148: 7600-411
A149: 7600 | B149: 590 | C149: Other Mat'L. & Supplies | D149: $ 0 | F149: =A149&"-"&B149 -> 7600-590
A150: 7600 | B150: 730 | C150: Dues and Fees | D150: $ 0 | F150: 7600-730
C151: 7600 Sub Total | D151: =SUM(D137:D150) -> $ 517,790
A152: Function 7700 ‐ Central Services
A153: 7700 | B153: 311 | C153: Recruiting | D153: $ 1,577 | E153: 2024-25 expenses increased by per FTE basis. | F153: =A153&"-"&B153 -> 7700-311
A154: 7700 | B154: 312 | C154: Marketing | D154: $ 5,271 | E154: 2024-25 expenses increased by per FTE basis. | F154: 7700-312
C155: 7700 Sub Total | D155: =SUM(D153:D154) -> $ 6,848
A156: Function 7900 ‐ Operation of Plant
A157: 7900 | B157: 160 | C157: Other Support Personnel | D157: $ 80,289 | E157: See the staffing Plan | F157: =A157&"-"&B157 -> 7900-160
A158: 7900 | B158: 210 | C158: Retirement | D158: $ 0 | F158: 7900-210
A159: 7900 | B159: 220 | C159: FICA | D159: $ 6,326 | E159: 7.65% of the wages | F159: 7900-220
A160: 7900 | B160: 230 | C160: Group Insurance | D160: $ 5,150 | E160: $5,000 per year per full-time employee, including inflation of 3% | F160: 7900-230
A161: 7900 | B161: 240 | C161: Worker's Compensation | D161: $ 496 | E161: 0.6% of the gross wages | F161: 7900-240
A162: 7900 | B162: 250 | C162: Unemployment Compensation | D162: $ 99 | E162: 0.4% of the gross wages | F162: 7900-250
A163: 7900 | B163: 290 | C163: Other Employee Benefits | D163: $ 0 | F163: 7900-290
A164: 7900 | B164: 310 | C164: Professional and Technical Services | D164: $ 0 | F164: =A164&"-"&B164 -> 7900-310
A165: 7900 | B165: 320 | C165: Insurance and Bond Premiums | D165: $ 2,743 | E165: 2024-25 expenses increased by per FTE basis. | F165: 7900-320
A166: 7900 | B166: 330 | C166: Travel | D166: $ 0 | F166: 7900-330
A167: 7900 | B167: 350 | C167: Repairs and Maintenance | D167: $ 12,150 | E167: 2024-25 expenses increased by per FTE basis. | F167: 7900-350
A168: 7900 | B168: 353 | C168: Grounds | D168: $ 0 | F168: =A168&"-"&B168 -> 7900-353
A169: 7900 | B169: 351 | C169: Pest Control | D169: $ 0 | F169: 7900-351
A170: 7900 | B170: 352 | C170: Security System | D170: $ 0 | F170: 7900-352
A171: 7900 | B171: 353 | C171: Security Services | D171: $ 81,155 | E171: 2024-25 expenses increased by per FTE basis. | F171: 7900-353
A172: 7900 | B172: 360 | C172: Rent | D172: $ 497,000 | E172: $1,400 per FTE | F172: 7900-360
A173: 7900 | B173: 363 | C173: Rent other than facility | D173: $ 3,441 | E173: 2024-25 expenses increased by per FTE basis. | F173: =A173&"-"&B173 -> 7900-363
A174: 7900 | B174: 370 | C174: Communications | D174: $ 7,479 | E174: 2024-25 expenses increased by per FTE basis. | F174: 7900-370
A175: 7900 | B175: 801 | C175: Waste/Water | D175: $ 14,920 | E175: 2024-25 expenses increased by per FTE basis. | F175: =A175&"-"&B175 -> 7900-801
A176: 7900 | B176: 380 | C176: Public Utilities | D176: $ 0 | F176: 7900-380
A177: 7900 | B177: 390 | C177: Other Purchased Services | D177: $ 55,005 | E177: 2024-25 expenses increased by per FTE basis. | F177: 7900-390
A178: 7900 | B178: 430 | C178: Utilities | D178: $ 67,645 | E178: 2024-25 expenses increased by per FTE basis. | F178: =A178&"-"&B178 -> 7900-430
A179: 7900 | B179: 510 | C179: Supplies | D179: $ 23,849 | E179: 2024-25 expenses increased by per FTE basis. | F179: =A179&"-"&B179 -> 7900-510
A180: 7900 | B180: 411 | C180: CapOtly.FF&E.Cap. | D180: $ 14,914 | E180: 2024-25 expenses increased by per FTE basis, also includes CSP grant budget | F180: 7900-411
A181: 7900 | B181: 421 | C181: CapOtly.FF&E.NonCap | D181: $ 1,290 | E181: 2024-25 expenses increased by per FTE basis, also includes CSP grant budget | F181: 7900-421
A182: 7900 | B182: 730 | C182: Dues and Fees | D182: $ 249,225 | E182: 2024-25 expenses increased by per FTE basis. | F182: 7900-730
C183: 7900 Sub Total | D183: =SUM(D157:D182) -> $ 1,123,177
A184: Function 8200 ‐ admin tech Services
A185: 8200 | B185: 350 | C185: Computer Repairs | D185: $ 0 | F185: =A185&"-"&B185 -> 8200-350
A186: 8200 | B186: 390 | C186: Other Purchased Services | D186: $ 19,347 | E186: 2024-25 expenses increased by per FTE basis. | F186: 8200-390
A187: 8200 | B187: 630 | C187: ComputerSoftware.NonCap | D187: $ 9,083 | E187: 2024-25 expenses increased by per FTE basis. | F187: 8200-630
A188: 8200 | B188: 643 | C188: Computer Hardware.Cap | D188: $ 8,737 | E188: CSP Grant Budget
A189: 8200 | B189: 300 | C189: Dues & Fees | D189: $ 0
C190: 8200 Sub Total | D190: =SUM(D185:D189) -> $ 37,168
A191: Function 9100 ‐ Community Services
A192: 9100 | B192: 160 | C192: Before and After Care Workers | D192: $ 108,000 | E192: See the staffing Plan | F192: =A192&"-"&B192 -> 9100-160
A193: 9100 | B193: 220 | C193: FICA | D193: $ 8,510 | E193: 7.65% of the wages | F193: 9100-220
A194: 9100 | B194: 240 | C194: Worker's Compensation | D194: $ 667 | E194: 0.6% of the gross wages | F194: 9100-240
A195: 9100 | B195: 250 | C195: Unemployment Compensation | D195: $ 132 | E195: 0.4% of the gross wages | F195: 9100-250
C196: 9100 Sub Total | D196: =SUM(D192:D195) -> $ 117,309
C198: Total Expenditures | D198: =D48+D62+D74+D87+D90+D93+D99+D102+D124+D135+D151+D183+D190+D127+D155+D196 -> $ 4,901,422
C199: Excess of Revenues Over Expenditures | D199: =D21-D198 -> $ 104,111
C201: Beginning Fund Balance (as of June 30, 2025) | D201: =15843.33+167693.91 -> $ 183,537
C202: Net Change in Fund Balance | D202: =D199 -> $ 104,111
C203: Ending Fund Balance | D203: =D201+D202 -> $ 287,648

Sheet Staffing Plan
A1: Staffing Plan - 2025-26
A2: Instructions: Categorize by Function and Expenditure Category. Salaries must tie to budget
A3: ** Staffing plan not limited to example categories listed below
A4: Expenditure Category | B4: Amount | C4: # of staff | D4: Total Salaries | E4: Function
A5: Classroom Salaries
A6: Teachers | B6: $60,354.83 | C6: 18 | D6: =B6*C6 -> $1,086,387.00 | E6: Basic Instruction
A7: Teachers | D7: =B7*C7 -> 0 | E7: Basic Instruction
A8: Paraprofessional | B8: $23,432.00 | C8: 5 | D8: $117,160.00 | E8: Basic Instruction
A9: Substitute Teachers
A10: Substitute/3100 | B10: 0 | C10: 0 | D10: 0 | E10: Basic Instruction
A12: Other Certified Staff Member
A13: ESE Teacher | B13: $85,000.00 | C13: 2 | D13: =B13*C13 -> $170,000.00 | E13: Execptional Education
A15: Paraprofessionals
A16: Paraprofessional | D16: 0 | E16: Basic Instruction
A19: School Administration
A20: Principal | B20: $107,900.00 | C20: 1 | D20: =B20*C20 -> $107,900.00 | E20: School Administration
A21: Assistant Principal | D21: =B21*C21 -> 0 | E21: School Administration
A22: Registrar Supervisor | B22: $35,360.00 | C22: 1 | D22: =B22*C22 -> $35,360.00 | E22: School Administration
A23: NSLP Director | D23: 0 | E23: School Administration
A24: ESE Specialist Supervisor | D24: 0 | E24: School Administration
A25: Head Counselor | D25: 0 | E25: School Administration
A26: Receptionist | B26: $37,440.00 | C26: 1 | D26: $37,440.00 | E26: School Administration
A27: Office Manager | B27: $44,000.00 | C27: 1 | D27: $44,000.00 | E27: School Administration
A28: Community Involvement Specialist/Activity Director | D28: 0 | E28: School Administration
A30: Other Support Personnel
A31: Interventionist | D31: =B31*C31 -> 0 | E31: Basic Instructional
A32: Custodian | B32: $19,994.00 | C32: 2 | D32: =B32*C32 -> $39,988.00 | E32: Operation of Plant
A33: Bathroom Monitor | D33: 0 | E33: Operation of Plant
A34: Night Cleaning Personnel | D34: 0 | E34: Operation of Plant
A35: IT Specialist | D35: =B35*C35 -> 0 | E35: General Adminstration
A36: Security Guard | B36: $46,180.00 | C36: 3 | D36: $138,540.00 | E36: General Adminstration
A37: Cafeteria Monitor | B37: $28,600.00 | C37: 1 | D37: =B37*C37 -> $28,600.00 | E37: Food Services
A38: Cafeteria Server | B38: $22,320.00 | C38: 4 | D38: $89,280.00 | E38: Food Services
A39: Before and After Care Workers | B39: $27,000.00 | C39: 4 | D39: $108,000.00 | E39: Community Services
A41: Total | C41: =SUM(C6:C39) -> 43.00 | D41: =SUM(D4:D39) -> $2,002,655.00
